lending/lending_fUSD_20250803
["ID","MTS","AMOUNT","RATE_DAILY","PERIOD"]
[376957544,1754179871017,-1199.78,0.00024657,2]
[376957545,1754179871027,-3457.68,0.00024657,2]
[376957546,1754179871037,-151.0,0.00024657,7]
[376957547,1754179871046,-556.37,0.00024657,2]
[376957548,1754179871055,-2309.56,0.00024657,2]
[376957549,1754179871064,-151.0,0.00024657,7]
[376957550,1754179871074,-400.0,0.00024657,2]
[376957551,1754179871083,-400.0,0.00024657,2]
[376957552,1754179871093,-1613.63,0.00024657,2]
[376957553,1754179871102,-151.0,0.00024657,7]
[376957554,1754179871111,-151.0,0.00024657,7]
[376957555,1754179871121,-544.54,0.00024657,2]
[376957556,1754179871133,-400.0,0.00024657,2]
[376957557,1754179871143,-400.0,0.00024657,2]
[376957558,1754179871152,-5410.43,0.00024657,2]
[376957559,1754179871161,-151.0,0.00024657,7]
[376957560,1754179871171,-158.270426,0.00024657,2]
[376957561,1754179871180,-595.86,0.00024657,2]
[376957562,1754179871189,-151.0,0.00024657,7]
[376957563,1754179871199,-400.0,0.00024657,2]
[376957564,1754179871208,-1006.98,0.00024657,2]
[376957565,1754179871217,-636.65,0.00024657,2]
[376957566,1754179871227,-400.0,0.00024657,2]
[376957567,1754179871237,-400.0,0.00024657,2]
[376957568,1754179871246,-2485.15,0.00024657,2]
[376957569,1754179871256,-400.0,0.00024657,2]
[376957570,1754179871265,-400.0,0.00024657,2]
[376957571,1754179871274,-151.79108,0.00024657,7]
[376957572,1754179871283,-151.79108,0.00024657,7]
[376957573,1754179871293,-477.67,0.00024657,2]
[376957574,1754179871302,-400.0,0.00024657,2]
[376957575,1754179871311,-400.0,0.00024657,2]
[376957576,1754179871321,-400.0,0.00024657,2]
[376957577,1754179871330,-2004.15,0.00024657,2]
[376957578,1754179871339,-780.85,0.00024657,2]
[376957579,1754179871349,-521.62741162,0.00024657,2]
[376957580,1754179871358,-445.73,0.00024657,2]
[376957581,1754179871368,-151.79108,0.00024657,7]
[376957582,1754179871379,-151.79108,0.00024657,7]
[376957583,1754179871389,-400.0,0.00024657,2]
[376957584,1754179871398,-400.0,0.00024657,2]
[376957585,1754179871408,-832.71,0.00024657,2]
[376957586,1754179871418,-6646.81,0.00024657,2]
[376957587,1754179871427,-400.0,0.00024657,2]
[376957588,1754179871436,-400.0,0.00024657,2]
[376957589,1754179871446,-400.0,0.00024657,2]
[376957590,1754179871455,-625.49,0.00024657,2]
[376957591,1754179871464,-980.08,0.00024657,2]
[376957592,1754179871474,-500.0,0.00024657,2]
[376957593,1754179871483,-500.0,0.00024657,2]
[376957594,1754179871493,-400.0,0.00024657,2]
[376957595,1754179871502,-400.0,0.00024657,2]
[376957596,1754179871512,-463.66,0.00024657,2]
[376957597,1754179871521,-400.0,0.00024657,2]
[376957598,1754179871531,-400.0,0.00024657,2]
[376957599,1754179871540,-1095.78,0.00024657,2]
[376957600,1754179871549,-400.0,0.00024657,2]
[376957601,1754179871558,-1528.82,0.00024657,2]
[376957602,1754179871568,-400.0,0.00024657,2]
[376957603,1754179871578,-552.99,0.00024657,2]
[376957604,1754179871587,-400.0,0.00024657,2]
[376957605,1754179871597,-1690.03,0.00024657,2]
[376957606,1754179871607,-1812.58,0.00024657,2]
[376957607,1754179871616,-400.0,0.00024657,2]
[376957608,1754179871628,-839.46,0.00024657,2]
[376957609,1754179871638,-296.370892,0.00024657,7]
[376957610,1754179871647,-2060.15,0.00024657,2]
[376957611,1754179871657,-296.370892,0.00024657,7]
[376957612,1754179871666,-837.07,0.00024657,2]
[376957613,1754179871676,-296.370892,0.00024657,7]
[376957614,1754179871688,-2082.54,0.00024657,2]
[376957615,1754179871698,-400.0,0.00024657,2]
[376957616,1754179871707,-400.0,0.00024657,2]
[376957617,1754179871717,-400.0,0.00024657,2]
[376957618,1754179871727,-400.0,0.00024657,2]
[376957619,1754179871736,-4312.74,0.00024657,2]
[376957620,1754179871746,-500.0,0.00024657,2]
[376957621,1754179871757,-100000.0,0.00024657,2]
[376957622,1754179871766,-500.0,0.00024657,2]
[376957623,1754179871775,-500.0,0.00024657,2]
[376957624,1754179871784,-1311.7,0.00024657,2]
[376957625,1754179871794,-543.06,0.00024657,2]
[376957626,1754179871803,-400.0,0.00024657,2]
[376957627,1754179871813,-1651.82,0.00024657,2]
[376957628,1754179871822,-400.0,0.00024657,2]
[376957629,1754179871831,-1030.94,0.00024657,2]
[376957630,1754179871840,-296.370892,0.00024657,7]
[376957631,1754179871851,-400.0,0.00024657,2]
[376957632,1754179871861,-400.0,0.00024657,2]
[376957633,1754179871870,-400.0,0.00024657,2]
[376957634,1754179871882,-4220.87,0.00024657,2]
[376957635,1754179871891,-296.370892,0.00024657,7]
[376957636,1754179871901,-296.370892,0.00024657,7]
[376957637,1754179871910,-400.0,0.00024657,2]
[376957638,1754179871920,-1232.78,0.00024657,2]
[376957639,1754179871929,-779.89,0.00024657,2]
[376957640,1754179871939,-1475.64,0.00024657,2]
[376957641,1754179871948,-400.0,0.00024657,2]
[376957642,1754179871957,-2680.54,0.00024657,2]
[376957643,1754179871967,-400.0,0.00024657,2]
[376957644,1754179871976,-438.8,0.00024657,2]
[376957645,1754179871986,-400.0,0.00024657,2]
[376957646,1754179871995,-400.0,0.00024657,2]
[376957647,1754179872004,-400.0,0.00024657,2]
[376957648,1754179872014,-400.0,0.00024657,2]
[376957649,1754179872023,-400.0,0.00024657,2]
[376957650,1754179872033,-1245.5,0.00024657,2]
[376957651,1754179872042,-400.0,0.00024657,2]
[376957652,1754179872051,-565.98,0.00024657,2]
[376957653,1754179872061,-1297.43,0.00024657,2]
[376957654,1754179872070,-774.12,0.00024657,2]
[376957655,1754179872079,-400.0,0.00024657,2]
[376957656,1754179872089,-400.0,0.00024657,2]
[376957657,1754179872098,-400.0,0.00024657,2]
[376957658,1754179872108,-1234.56,0.00024657,2]
[376957659,1754179872117,-400.0,0.00024657,2]
[376957660,1754179872128,-400.0,0.00024657,2]
[376957661,1754179872138,-1798.42,0.00024657,2]
[376957662,1754179872147,-400.0,0.00024657,2]
[376957663,1754179872157,-400.0,0.00024657,2]
[376957664,1754179872166,-400.0,0.00024657,2]
[376957665,1754179872176,-400.0,0.00024657,2]
[376957666,1754179872185,-400.0,0.00024657,2]
[376957667,1754179872195,-495.78,0.00024657,2]
[376957668,1754179872205,-400.0,0.00024657,2]
[376957669,1754179872214,-2037.75,0.00024657,2]
[376957670,1754179872224,-1613.12,0.00024657,2]
[376957671,1754179872233,-400.0,0.00024657,2]
[376957672,1754179872243,-400.0,0.00024657,2]
[376957673,1754179872253,-400.0,0.00024657,2]
[376957674,1754179872263,-400.0,0.00024657,2]
[376957675,1754179872273,-400.0,0.00024657,2]
[376957676,1754179872282,-405.22105428,0.00024657,2]
[376957677,1754179872292,-1564.25,0.00024657,2]
[376957678,1754179872301,-400.0,0.00024657,2]
[376957679,1754179872311,-2855.21,0.00024657,2]
[376957680,1754179872321,-7402.93,0.00024657,2]
[376957681,1754179872331,-530.0,0.00024657,2]
[376957682,1754179872340,-1101.16,0.00024657,2]
[376957683,1754179872349,-400.0,0.00024657,2]
[376957684,1754179872358,-400.0,0.00024657,2]
[376957685,1754179872367,-400.0,0.00024657,2]
[376957686,1754179872391,-445.38,0.00024657,2]
[376957687,1754179872402,-8898.48,0.00024657,2]
[376957688,1754179872412,-376.70820109,0.00024657,2]
[376957689,1754179872422,-400.0,0.00024657,2]
[376957690,1754179872431,-400.0,0.00024657,2]
[376957691,1754179872441,-400.0,0.00024657,2]
[376957692,1754179872450,-913.47,0.00024657,2]
[376957693,1754179872460,-500.0,0.00024657,2]
[376957694,1754179872470,-500.0,0.00024657,2]
[376957695,1754179872480,-500.0,0.00024657,2]
[376957696,1754179872490,-500.0,0.00024657,2]
[376957697,1754179872500,-500.0,0.00024657,2]
[376957698,1754179872510,-500.0,0.00024657,2]
[376957699,1754179872519,-450.20950499,0.00024657,2]
[376957700,1754179872529,-400.0,0.00024657,2]
[376957701,1754179872539,-400.0,0.00024657,2]
[376957702,1754179872548,-400.0,0.00024657,2]
[376957703,1754179872559,-400.0,0.00024657,2]
[376957704,1754179872570,-2038.88,0.00024657,2]
[376957705,1754179872580,-400.0,0.00024657,2]
[376957706,1754179872591,-2564.88,0.00024657,2]
[376957707,1754179872600,-432.95,0.00024657,2]
[376957708,1754179872610,-400.0,0.00024657,2]
[376957709,1754179872619,-461.40648407,0.00024657,2]
[376957710,1754179872632,-451.76,0.00024657,2]
[376957711,1754179872642,-400.0,0.00024657,2]
[376957712,1754179872652,-400.0,0.00024657,2]
[376957713,1754179872662,-692.84,0.00024657,2]
[376957714,1754179872671,-400.0,0.00024657,2]
[376957715,1754179872683,-400.0,0.00024657,2]
[376957716,1754179872693,-572.35,0.00024657,2]
[376957717,1754179872703,-806.53,0.00024657,2]
[376957718,1754179872713,-400.0,0.00024657,2]
[376957719,1754179872723,-525.48,0.00024657,2]
[376957720,1754179872732,-525.48,0.00024657,2]
[376957721,1754179872742,-525.48,0.00024657,2]
[376957722,1754179872752,-525.48,0.00024657,2]
[376957723,1754179872764,-1909.1,0.00024657,2]
[376957724,1754179872774,-525.48,0.00024657,2]
[376957725,1754179872784,-525.48,0.00024657,2]
[376957726,1754179872794,-525.48,0.00024657,2]
[376957727,1754179872803,-151.0,0.00024657,7]
[376957728,1754179872813,-525.48,0.00024657,2]
[376957729,1754179872823,-627.43,0.00024657,2]
[376957730,1754179872833,-525.48,0.00024657,2]
[376957731,1754179872843,-1089.71,0.00024657,2]
[376957732,1754179872852,-151.0,0.00024657,7]
[376957733,1754179872863,-525.48,0.00024657,2]
[376957734,1754179872874,-1490.62,0.00024657,2]
[376957735,1754179872884,-525.48,0.00024657,2]
[376957736,1754179872894,-400.0,0.00024657,2]
[376957737,1754179872904,-544.82,0.00024657,2]
[376957738,1754179872914,-680.66,0.00024657,2]
[376957739,1754179872924,-525.48,0.00024657,2]
[376957740,1754179872934,-525.48,0.00024657,2]
[376957741,1754179872944,-525.48,0.00024657,2]
[376957742,1754179872953,-525.48,0.00024657,2]
[376957743,1754179872963,-525.48,0.00024657,2]
[376957744,1754179872972,-500.0,0.00024657,2]
[376957745,1754179872982,-400.0,0.00024657,2]
[376957746,1754179872992,-500.0,0.00024657,2]
[376957747,1754179873001,-500.0,0.00024657,2]
[376957748,1754179873011,-500.0,0.00024657,2]
[376957749,1754179873021,-400.0,0.00024657,2]
[376957750,1754179873031,-5591.15,0.00024657,2]
[376957751,1754179873040,-692.03,0.00024657,2]
[376957752,1754179873050,-400.29653733,0.00024657,2]
[376957753,1754179873059,-3493.41,0.00024657,2]
[376957754,1754179873069,-400.0,0.00024657,2]
[376957755,1754179873079,-400.0,0.00024657,2]
[376957756,1754179873088,-400.0,0.00024657,2]
[376957757,1754179873098,-400.0,0.00024657,2]
[376957758,1754179873107,-400.0,0.00024657,2]
[376957759,1754179873117,-400.0,0.00024657,2]
[376957760,1754179873128,-400.0,0.00024657,2]
[376957761,1754179873138,-151.0,0.00024657,7]
[376957762,1754179873147,-400.0,0.00024657,2]
[376957763,1754179873157,-151.0,0.00024657,7]
[376957764,1754179873167,-400.0,0.00024657,2]
[376957765,1754179873176,-1208.37,0.00024657,2]
[376957766,1754179873186,-906.59,0.00024657,2]
[376957767,1754179873195,-400.0,0.00024657,2]
[376957768,1754179873205,-1215.26,0.00024657,2]
[376957769,1754179873215,-2296.12,0.00024657,2]
[376957770,1754179873225,-150.04434755,0.00024657,2]
[376957771,1754179873234,-400.0,0.00024657,2]
[376957772,1754179873244,-522.76,0.00024657,2]
[376957773,1754179873254,-400.0,0.00024657,2]
[376957774,1754179873264,-1878.61,0.00024657,2]
[376957775,1754179873273,-2643.2,0.00024657,2]
[376957776,1754179873283,-401.70295758,0.00024657,2]
[376957777,1754179873293,-270.02626693,0.00024657,2]
[376957778,1754179873302,-400.0,0.00024657,2]
[376957779,1754179873312,-1105.4,0.00024657,2]
[376957780,1754179873322,-400.0,0.00024657,2]
[376957781,1754179873331,-400.0,0.00024657,2]
[376957782,1754179873341,-1015.88,0.00024657,2]
[376957783,1754179873351,-400.0,0.00024657,2]
[376957784,1754179873360,-400.0,0.00024657,2]
[376957785,1754179873370,-979.98,0.00024657,2]
[376957786,1754179873381,-2396.09,0.00024657,2]
[376957787,1754179873391,-1033.59,0.00024657,2]
[376957788,1754179873400,-266.60458472,0.00024657,2]
[376957789,1754179873410,-698.61,0.00024657,2]
[376957790,1754179873420,-400.0,0.00024657,2]
[376957791,1754179873430,-151.0,0.00024657,7]
[376957792,1754179873440,-151.0,0.00024657,7]
[376957793,1754179873449,-400.0,0.00024657,2]
[376957794,1754179873459,-715.06,0.00024657,2]
[376957795,1754179873469,-400.0,0.00024657,2]
[376957796,1754179873478,-993.12,0.00024657,2]
[376957797,1754179873488,-400.0,0.00024657,2]
[376957798,1754179873498,-3237.52,0.00024657,2]
[376957799,1754179873508,-400.0,0.00024657,2]
[376957800,1754179873518,-400.0,0.00024657,2]
[376957801,1754179873527,-2491.48,0.00024657,2]
[376957802,1754179873537,-1151.56,0.00024657,2]
[376957803,1754179873547,-400.0,0.00024657,2]
[376957804,1754179873557,-400.0,0.00024657,2]
[376957805,1754179873567,-1461.97,0.00024657,2]
[376957806,1754179873577,-400.0,0.00024657,2]
[376957807,1754179873586,-1657.85,0.00024657,2]
[376957808,1754179873596,-400.0,0.00024657,2]
[376957809,1754179873606,-400.0,0.00024657,2]
[376957810,1754179873616,-400.0,0.00024657,2]
[376957811,1754179873628,-151.0,0.00024657,7]
[376957812,1754179873638,-433.29,0.00024657,2]
[376957813,1754179873647,-400.0,0.00024657,2]
[376957814,1754179873658,-151.0,0.00024657,7]
[376957815,1754179873667,-400.0,0.00024657,2]
[376957816,1754179873677,-400.0,0.00024657,2]
[376957817,1754179873690,-500.0,0.00024657,2]
[376957818,1754179873699,-912.49,0.00024657,2]
[376957819,1754179873710,-500.0,0.00024657,2]
[376957820,1754179873719,-2045.52,0.00024657,2]
[376957821,1754179873729,-479.62,0.00024657,2]
[376957822,1754179873738,-2286.24,0.00024657,2]
[376957823,1754179873748,-400.0,0.00024657,2]
[376957824,1754179873757,-1391.87,0.00024657,2]
[376957825,1754179873767,-2247.96,0.00024657,2]
[376957826,1754179873779,-400.0,0.00024657,2]
[376957827,1754179873789,-7458.76,0.00024657,2]
[376957828,1754179873799,-400.0,0.00024657,2]
[376957829,1754179873809,-548.64,0.00024657,2]
[376957830,1754179873819,-1079.63,0.00024657,2]
[376957831,1754179873830,-400.0,0.00024657,2]
[376957832,1754179873839,-400.0,0.00024657,2]
[376957833,1754179873849,-401.49,0.00024657,2]
[376957834,1754179873860,-400.0,0.00024657,2]
[376957835,1754179873872,-1000.0,0.00024657,2]
[376957836,1754179873882,-1746.6,0.00024657,2]
[376957837,1754179873892,-706.31,0.00024657,2]
[376957838,1754179873902,-3312.97,0.00024657,2]
[376957839,1754179873911,-1194.57,0.00024657,2]
[376957840,1754179873921,-400.0,0.00024657,2]
[376957841,1754179873930,-400.0,0.00024657,2]
[376957842,1754179873940,-461.66,0.00024657,2]
[376957843,1754179873950,-400.0,0.00024657,2]
[376957844,1754179873960,-400.0,0.00024657,2]
[376957845,1754179873970,-1788.33,0.00024657,2]
[376957846,1754179873979,-2949.48,0.00024657,2]
[376957847,1754179873990,-151.0,0.00024657,7]
[376957848,1754179873999,-1608.33,0.00024657,2]
[376957849,1754179874010,-151.0,0.00024657,7]
[376957850,1754179874019,-400.0,0.00024657,2]
[376957851,1754179874029,-500.0,0.00024657,2]
[376957852,1754179874038,-500.0,0.00024657,2]
[376957853,1754179874047,-1314.84,0.00024657,2]
[376957854,1754179874058,-500.0,0.00024657,2]
[376957855,1754179874068,-400.0,0.00024657,2]
[376957856,1754179874077,-400.0,0.00024657,2]
[376957857,1754179874087,-400.0,0.00024657,2]
[376957858,1754179874096,-400.0,0.00024657,2]
[376957859,1754179874105,-400.0,0.00024657,2]
[376957860,1754179874115,-151.0,0.00024657,7]
[376957861,1754179874124,-150.0,0.00024657,2]
[376957862,1754179874133,-151.0,0.00024657,7]
[376957863,1754179874142,-855.26,0.00024657,2]
[376957864,1754179874151,-400.0,0.00024657,2]
[376957865,1754179874161,-400.0,0.00024657,2]
[376957866,1754179874170,-400.0,0.00024657,2]
[376957867,1754179874179,-3344.71,0.00024657,2]
[376957868,1754179874189,-774.67,0.00024657,2]
[376957869,1754179874199,-400.0,0.00024657,2]
[376957870,1754179874208,-400.0,0.00024657,2]
[376957871,1754179874218,-3892.54,0.00024657,2]
[376957872,1754179874227,-958.97,0.00024657,2]
[376957873,1754179874237,-400.0,0.00024657,2]
[376957874,1754179874246,-1912.06,0.00024657,2]
[376957875,1754179874256,-479.88,0.00024657,2]
[376957876,1754179874267,-793.97,0.00024657,2]
[376957877,1754179874278,-915.29,0.00024657,2]
[376957878,1754179874287,-1181.65,0.00024657,2]
[376957879,1754179874297,-8174.79,0.00024657,2]
[376957880,1754179874307,-400.0,0.00024657,2]
[376957881,1754179874316,-452.34,0.00024657,2]
[376957882,1754179874327,-1022.11,0.00024657,2]
[376957883,1754179874337,-500.0,0.00024657,2]
[376957884,1754179874347,-1142.92,0.00024657,2]
[376957885,1754179874356,-400.0,0.00024657,2]
[376957886,1754179874367,-400.0,0.00024657,2]
[376957887,1754179874378,-400.0,0.00024657,2]
[376957888,1754179874388,-1845.76,0.00024657,2]
[376957889,1754179874398,-400.0,0.00024657,2]
[376957890,1754179874408,-2169.07,0.00024657,2]
[376957891,1754179874421,-400.0,0.00024657,2]
[376957892,1754179874432,-400.0,0.00024657,2]
[376957893,1754179874443,-485.14,0.00024657,2]
[376957894,1754179874455,-6692.32,0.00024657,2]
[376957895,1754179874466,-150.0,0.00024657,2]
[376957896,1754179874476,-400.0,0.00024657,2]
[376957897,1754179874487,-675.29,0.00024657,2]
[376957898,1754179874497,-1338.17,0.00024657,2]
[376957899,1754179874507,-184895.38,0.00024657,2]
[376957900,1754179874517,-1873.04,0.00024657,2]
[376957901,1754179874527,-1454.94,0.00024657,2]
[376957902,1754179874537,-3063.91,0.00024657,2]
[376957903,1754179874547,-400.0,0.00024657,2]
[376957904,1754179874557,-466.88,0.00024657,2]
[376957905,1754179874567,-3721.83,0.00024657,2]
[376957906,1754179874579,-400.0,0.00024657,2]
[376957907,1754179874588,-150.0,0.00024657,2]
[376957908,1754179874600,-500.0,0.00024657,2]
[376957909,1754179874611,-2609.12,0.00024657,2]
[376957910,1754179874622,-1309.71,0.00024657,2]
[376957911,1754179874632,-400.0,0.00024657,2]
[376957912,1754179874642,-400.0,0.00024657,2]
[376957913,1754179874653,-205.45376286,0.00024657,2]
[376957914,1754179874664,-150.4640321,0.00024657,2]
[376957915,1754179874675,-469.95975392,0.00024657,2]
[376957916,1754179874693,-400.0,0.00024657,2]
[376957917,1754179874704,-9333.31,0.00024657,2]
[376957918,1754179874714,-400.0,0.00024657,2]
[376957919,1754179874727,-500.0,0.00024657,2]
[376957920,1754179874736,-400.0,0.00024657,2]
[376957921,1754179874746,-400.0,0.00024657,2]
[376957922,1754179874756,-400.0,0.00024657,2]
[376957923,1754179874767,-588.0,0.00024657,2]
[376957924,1754179874777,-622.33,0.00024657,2]
[376957925,1754179874787,-11134.27,0.00024657,2]
[376957926,1754179874798,-150.26584263,0.00024657,2]
[376957927,1754179874808,-456.128882,0.00024657,7]
[376957928,1754179874818,-400.0,0.00024657,2]
[376957929,1754179874828,-400.0,0.00024657,2]
[376957930,1754179874839,-400.0,0.00024657,2]
[376957931,1754179874850,-400.0,0.00024657,2]
[376957932,1754179874860,-400.0,0.00024657,2]
[376957933,1754179874870,-699.25,0.00024657,2]
[376957934,1754179874881,-5258.22,0.00024657,2]
[376957935,1754179874891,-1084.6,0.00024657,2]
[376957936,1754179874901,-527.25,0.00024657,2]
[376957937,1754179874913,-400.0,0.00024657,2]
[376957938,1754179874923,-150.0,0.00024657,2]
[376957939,1754179874934,-400.0,0.00024657,2]
[376957940,1754179874944,-150.0,0.00024657,2]
[376957941,1754179874955,-2102.42,0.00024657,2]
[376957942,1754179874964,-456.128882,0.00024657,7]
[376957943,1754179874975,-8289.12,0.00024657,2]
[376957944,1754179874984,-400.0,0.00024657,2]
[376957945,1754179874994,-400.0,0.00024657,2]
[376957946,1754179875004,-400.0,0.00024657,2]
[376957947,1754179875014,-1216.16,0.00024657,2]
[376957948,1754179875024,-400.0,0.00024657,2]
[376957949,1754179875034,-400.0,0.00024657,2]
[376957950,1754179875044,-150.0,0.00024657,2]
[376957951,1754179875054,-151.0,0.00024657,7]
[376957952,1754179875065,-400.0,0.00024657,2]
[376957953,1754179875075,-1196.37,0.00024657,2]
[376957954,1754179875085,-151.0,0.00024657,7]
[376957955,1754179875095,-7233.23,0.00024657,2]
[376957956,1754179875105,-620.34,0.00024657,2]
[376957957,1754179875115,-1602.88,0.00024657,2]
[376957958,1754179875125,-1811.27,0.00024657,2]
[376957959,1754179875135,-620.34,0.00024657,2]
[376957960,1754179875145,-844.5,0.00024657,2]
[376957961,1754179875155,-620.34,0.00024657,2]
[376957962,1754179875164,-620.34,0.00024657,2]
[376957963,1754179875175,-620.34,0.00024657,2]
[376957964,1754179875185,-620.34,0.00024657,2]
[376957965,1754179875195,-5024.22,0.00024657,2]
[376957966,1754179875205,-620.34,0.00024657,2]
[376957967,1754179875215,-620.34,0.00024657,2]
[376957968,1754179875225,-620.34,0.00024657,2]
[376957969,1754179875235,-620.34,0.00024657,2]
[376957970,1754179875244,-400.0,0.00024657,2]
[376957971,1754179875254,-620.34,0.00024657,2]
[376957972,1754179875264,-500.0,0.00024657,2]
[376957973,1754179875274,-620.34,0.00024657,2]
[376957974,1754179875284,-2239.43,0.00024657,2]
[376957975,1754179875294,-400.0,0.00024657,2]
[376957976,1754179875304,-6584.97,0.00024657,2]
[376957977,1754179875314,-150.0,0.00024657,2]
[376957978,1754179875324,-902.62,0.00024657,2]
[376957979,1754179875334,-400.0,0.00024657,2]
[376957980,1754179875344,-2311.24,0.00024657,2]
[376957981,1754179875354,-400.0,0.00024657,2]
[376957982,1754179875364,-150.23736701,0.00024657,2]
[376957983,1754179875375,-416.05,0.00024657,2]
[376957984,1754179875385,-400.0,0.00024657,2]
[376957985,1754179875395,-400.0,0.00024657,2]
[376957986,1754179875405,-400.0,0.00024657,2]
[376957987,1754179875415,-2186.61,0.00024657,2]
[376957988,1754179875425,-400.0,0.00024657,2]
[376957989,1754179875435,-8095.86,0.00024657,2]
[376957990,1754179875445,-400.0,0.00024657,2]
[376957991,1754179875455,-1544.64,0.00024657,2]
[376957992,1754179875465,-371.40222849,0.00024657,2]
[376957993,1754179875475,-1813.09,0.00024657,2]
[376957994,1754179875485,-528.83,0.00024657,2]
[376957995,1754179875495,-400.0,0.00024657,2]
[376957996,1754179875505,-500.78,0.00024657,2]
[376957997,1754179875515,-3000.51,0.00024657,2]
[376957998,1754179875525,-401.0045578,0.00024657,2]
[376957999,1754179875535,-400.0,0.00024657,2]
[376958000,1754179875545,-1685.81,0.00024657,2]
[376958001,1754179875555,-1409.68,0.00024657,2]
[376958002,1754179875564,-400.0,0.00024657,2]
[376958003,1754179875575,-400.0,0.00024657,2]
[376958004,1754179875584,-400.0,0.00024657,2]
[376958005,1754179875594,-318.31931517,0.00024657,2]
[376958006,1754179875604,-6462.88,0.00024657,2]
[376958007,1754179875615,-400.0,0.00024657,2]
[376958008,1754179875626,-400.0,0.00024657,2]
[376958009,1754179875636,-2058.77,0.00024657,2]
[376958010,1754179875646,-400.0,0.00024657,2]
[376958011,1754179875656,-1553.95,0.00024657,2]
[376958012,1754179875666,-862.83,0.00024657,2]
[376958013,1754179875676,-400.0,0.00024657,2]
[376958014,1754179875690,-3739.45,0.00024657,2]
[376958015,1754179875700,-400.0,0.00024657,2]
[376958016,1754179875710,-612.64,0.00024657,2]
[376958017,1754179875720,-1283.32,0.00024657,2]
[376958018,1754179875731,-400.0,0.00024657,2]
[376958019,1754179875742,-212.797275,0.00024657,7]
[376958020,1754179875753,-212.797275,0.00024657,7]
[376958021,1754179875765,-400.0,0.00024657,2]
[376958022,1754179875776,-6010.11,0.00024657,2]
[376958023,1754179875787,-400.0,0.00024657,2]
[376958024,1754179875797,-400.0,0.00024657,2]
[376958025,1754179875807,-400.0,0.00024657,2]
[376958026,1754179875817,-400.0,0.00024657,2]
[376958027,1754179875827,-400.0,0.00024657,2]
[376958028,1754179875837,-500.0,0.00024657,2]
[376958029,1754179875847,-500.0,0.00024657,2]
[376958030,1754179875857,-212.797275,0.00024657,7]
[376958031,1754179875867,-500.0,0.00024657,2]
[376958032,1754179875877,-500.0,0.00024657,2]
[376958033,1754179875887,-212.797275,0.00024657,7]
[376958034,1754179875898,-568.13808073,0.00024657,2]
[376958035,1754179875908,-400.0,0.00024657,2]
[376958036,1754179875918,-400.0,0.00024657,2]
[376958037,1754179875929,-3508.5,0.00024657,2]
[376958038,1754179875939,-851.51,0.00024657,2]
[376958039,1754179875950,-498.66,0.00024657,2]
[376958040,1754179875961,-400.0,0.00024657,2]
[376958041,1754179875971,-7245.81,0.00024657,2]
[376958042,1754179875982,-489.95,0.00024657,2]
[376958043,1754179875992,-400.0,0.00024657,2]